bitfinex/quotes_BTCUSD_20230403
["timestamp","ask_amount","ask_price","bid_price","bid_amount"]
[1680560329655,0.30018,27891.0,27889.0,0.46304362]
[1680560330139,0.00018,27891.0,27890.0,0.04630436]
[1680560330383,0.00018,27898.0,27890.0,0.495626]
[1680560330624,0.27142064,27901.0,27890.0,0.495626]
[1680560330625,0.31188623,27897.0,27893.0,0.17925]
[1680560330864,0.00018,27897.0,27894.0,0.07029936]
[1680560331096,0.31541678,27897.0,27895.0,0.0066]
[1680560331337,0.4128574,27896.0,27895.0,0.0066]
[1680560331554,0.00018,27897.0,27891.0,0.17926]
[1680560331786,0.14189681,27897.0,27894.0,0.028]
[1680560332061,0.146341,27898.0,27894.0,0.028]
[1680560332290,0.42767858,27898.0,27895.0,0.43976521]
[1680560332518,0.42785858,27898.0,27895.0,0.46776521]
[1680560332972,0.3,27897.0,27895.0,0.46776521]
[1680560333254,0.00018,27897.0,27896.0,0.04677652]
[1680560333515,0.008961,27897.0,27893.0,0.00018]
[1680560333789,0.008961,27897.0,27894.0,0.028]
[1680560333790,0.33419347,27896.0,27894.0,0.028]
[1680560334062,0.1372,27894.0,27892.0,0.00018]
[1680560334356,0.058822,27893.0,27890.0,0.30351244]
[1680560334598,0.34205066,27892.0,27890.0,0.30351244]
[1680560334835,0.00018,27893.0,27891.0,0.03035124]
[1680560335061,0.3,27895.0,27886.0,0.97060132]
[1680560335289,0.14189681,27894.0,27892.0,0.028]
[1680560335509,0.00018,27896.0,27890.0,0.19730108]
[1680560335741,0.5843063,27897.0,27891.0,0.47204862]
[1680560335966,0.5844863,27897.0,27892.0,0.07029936]
[1680560336209,0.33745157,27896.0,27892.0,0.07029936]
[1680560336441,0.33745157,27896.0,27892.0,0.12029936]
[1680560336442,0.00018,27896.0,27892.0,0.12029936]
[1680560336673,0.00018,27897.0,27893.0,0.07548775]
[1680560336906,0.310141,27898.0,27893.0,0.07541514]
[1680560337226,0.008961,27897.0,27891.0,0.94609148]
[1680560337331,0.34572439,27897.0,27892.0,0.32876985]
[1680560337553,0.34572439,27897.0,27893.0,0.43028796]
[1680560337554,0.3,27896.0,27893.0,0.43028796]
[1680560337775,0.008962,27895.0,27893.0,0.028]
[1680560338001,0.008962,27895.0,27894.0,0.40122621]
[1680560338225,0.009142,27895.0,27894.0,0.40122621]
[1680560338456,0.009142,27895.0,27893.0,0.00018]
[1680560338691,0.48119,27895.0,27892.0,0.028]
[1680560338913,0.051131,27894.0,27892.0,0.028]
[1680560339147,0.026887,27893.0,27892.0,0.36029709]
[1680560339367,0.027067,27893.0,27892.0,0.028]
[1680560339588,0.026887,27893.0,27892.0,0.47776722]
[1680560339837,0.027067,27893.0,27892.0,0.44976722]
[1680560340509,0.009142,27893.0,27892.0,0.47776722]
[1680560340729,0.009142,27893.0,27892.0,0.07299472]
[1680560340730,0.00018,27893.0,27892.0,0.07299472]
[1680560340960,0.00018,27895.0,27892.0,0.4816136]
[1680560341217,0.30145756,27895.0,27892.0,0.4536136]
[1680560341422,0.3,27894.0,27892.0,0.3684106]
[1680560341648,0.00018,27894.0,27892.0,0.3401916]
[1680560341879,0.00018,27895.0,27892.0,0.3399726]
[1680560342105,0.00018,27895.0,27892.0,0.35714133]
[1680560342338,0.69482814,27896.0,27893.0,0.31159723]
[1680560342339,0.69500814,27896.0,27893.0,0.31159723]
[1680560342567,0.70397014,27896.0,27893.0,0.30276023]
[1680560343519,0.34096674,27895.0,27892.0,0.00018]
[1680560343785,0.34096674,27895.0,27887.0,0.70108]
[1680560343786,0.54212568,27894.0,27893.0,0.028]
[1680560344027,0.00018,27895.0,27891.0,0.00018]
[1680560344270,0.008961,27896.0,27893.0,0.48097883]
[1680560344493,0.008961,27896.0,27893.0,0.45297883]
[1680560344715,0.74123845,27896.0,27893.0,0.45297883]
[1680560344994,0.309141,27896.0,27894.0,0.009408]
[1680560345218,0.3,27900.0,27899.0,0.12045141]
[1680560345459,0.87840724,27900.0,27899.0,0.12045141]
[1680560345897,0.75350565,27900.0,27899.0,0.12045141]
[1680560346582,0.75350565,27900.0,27899.0,0.21879591]
[1680560346583,0.20369565,27900.0,27899.0,0.21879591]
[1680560346822,0.07299193,27902.0,27901.0,0.2]
[1680560346823,6e-05,27902.0,27901.0,0.2]
[1680560347054,0.02687518,27907.0,27901.0,0.07029936]
[1680560347290,0.008959,27903.0,27902.0,0.07029936]
[1680560347558,0.007659,27903.0,27902.0,0.62984134]
[1680560347786,0.007659,27903.0,27902.0,0.62978134]
[1680560348027,0.00018,27906.0,27901.0,0.35116]
[1680560348262,0.00018,27906.0,27902.0,0.07029936]
[1680560348263,0.008959,27905.0,27902.0,0.07029936]
[1680560348496,0.02687518,27907.0,27903.0,0.02424394]
[1680560348726,0.02687518,27907.0,27903.0,0.2515033]
[1680560348727,0.008958,27905.0,27903.0,0.2515033]
[1680560348966,0.02703677,27907.0,27904.0,0.359855]
[1680560349191,0.02687518,27907.0,27905.0,0.05]
[1680560349422,0.02687518,27907.0,27905.0,0.2219]
[1680560349648,0.02687518,27907.0,27906.0,0.1719]
[1680560350355,0.02687518,27907.0,27906.0,0.77529505]
[1680560350579,0.02687518,27907.0,27906.0,0.59613505]
[1680560350831,0.02687518,27907.0,27899.0,0.52797677]
[1680560350832,0.75974891,27906.0,27899.0,0.52797677]
[1680560351063,0.75974891,27906.0,27903.0,6e-05]
[1680560351064,0.062714,27904.0,27903.0,6e-05]
[1680560351288,0.3918754,27904.0,27900.0,0.68621106]
[1680560351524,0.1372,27901.0,27900.0,0.68621106]
[1680560351749,0.16424159,27901.0,27900.0,0.68621106]
[1680560352193,0.02704159,27901.0,27900.0,0.028]
[1680560352422,0.00912159,27901.0,27900.0,0.05187474]
[1680560352699,0.00912159,27901.0,27900.0,0.028]
[1680560352940,0.23595338,27901.0,27900.0,0.028]
[1680560353157,0.00912159,27901.0,27900.0,0.028]
[1680560353382,0.8330184,27901.0,27900.0,0.028]
[1680560353603,1.04401262,27901.0,27900.0,0.028]
[1680560353827,1.12671456,27901.0,27900.0,0.028]
[1680560354075,1.12671456,27901.0,27899.0,0.12045141]
[1680560354076,0.98465616,27901.0,27899.0,0.12045141]
[1680560354308,0.927208,27900.0,27899.0,0.12045141]
[1680560354530,0.99009259,27900.0,27899.0,0.12045141]
[1680560355244,0.989931,27900.0,27899.0,0.12045141]
[1680560355494,1.13582116,27900.0,27899.0,0.11170141]
[1680560355723,1.13582116,27900.0,27899.0,0.08320365]
[1680560356172,1.14282116,27900.0,27899.0,0.00100365]
[1680560357498,2.43119524,27900.0,27899.0,0.00100365]
[1680560357715,1.14734491,27900.0,27899.0,3.65e-06]
[1680560357950,0.58318863,27900.0,27899.0,3.65e-06]
[1680560358177,0.71336385,27900.0,27899.0,3.65e-06]
[1680560358403,0.576731,27900.0,27899.0,0.00100365]
[1680560358668,0.68238201,27900.0,27899.0,3.65e-06]
[1680560358933,0.2,27899.0,27892.0,0.35998299]
[1680560359243,0.1364,27893.0,27892.0,0.35998299]
[1680560359468,0.1365,27895.0,27894.0,0.33180081]
[1680560359739,0.197912,27895.0,27894.0,0.33198081]
[1680560360009,0.197912,27895.0,27894.0,0.00018]
[1680560360323,0.497912,27895.0,27894.0,0.00018]
[1680560360567,0.00016159,27897.0,27894.0,0.11218426]
[1680560360852,0.12734494,27906.0,27894.0,0.11218426]
[1680560360853,0.00896,27902.0,27895.0,0.27029936]
[1680560361126,0.002,27899.0,27896.0,0.05]
[1680560361399,0.00896,27901.0,27896.0,0.05018]
[1680560361696,6e-05,27902.0,27897.0,0.12259936]
[1680560361990,0.1372,27904.0,27897.0,0.63809936]
[1680560362270,0.002,27899.0,27898.0,0.05]
[1680560362547,0.00016159,27904.0,27898.0,0.067922]
[1680560362823,0.3346632,27907.0,27899.0,0.27029936]
[1680560363342,0.002,27904.0,27901.0,0.02112]
[1680560363627,0.002,27904.0,27903.0,0.17919]
[1680560363862,0.002,27904.0,27903.0,0.199221]
[1680560364309,0.02687518,27907.0,27903.0,0.41714]
[1680560364544,0.002,27904.0,27903.0,0.47262036]
[1680560364762,0.1364,27914.0,27910.0,0.2]
[1680560364985,0.080096,27913.0,27911.0,0.07029936]
[1680560365205,0.026868,27913.0,27911.0,0.07047936]
[1680560365462,0.14330375,27918.0,27912.0,0.2]
[1680560365463,0.00018,27918.0,27912.0,0.2]
[1680560365724,0.00912013,27921.0,27917.0,0.2]
[1680560365989,0.02277001,27920.0,27918.0,0.09029936]
[1680560366458,0.1967928,27923.0,27921.0,0.2]
[1680560366459,0.00012,27923.0,27921.0,0.2]
[1680560366683,0.00012,27923.0,27921.0,0.27035936]
[1680560366684,0.008953,27923.0,27921.0,0.27035936]
[1680560366951,0.052882,27922.0,27921.0,0.20018]
[1680560367245,0.00018,27929.0,27922.0,0.01398718]
[1680560367498,0.8625754,27935.0,27923.0,0.07029936]
[1680560367499,0.026857,27925.0,27923.0,0.07029936]
[1680560367768,1.32652456,27924.0,27923.0,0.00018]
[1680560368037,1.32652456,27924.0,27919.0,0.2]
[1680560368038,0.07011754,27922.0,27919.0,0.2]
[1680560368519,0.045495,27921.0,27920.0,0.38404497]
[1680560368521,0.045495,27921.0,27919.0,0.195]
[1680560368844,0.07011754,27922.0,27921.0,0.01398718]
[1680560369086,0.07011754,27922.0,27921.0,0.03646418]
[1680560369345,0.07011754,27922.0,27921.0,0.01398718]
[1680560369668,3.47e-06,27925.0,27923.0,0.582]
[1680560369887,6e-05,27929.0,27927.0,0.20898718]
[1680560369888,0.00012,27929.0,27927.0,0.20898718]
[1680560370154,0.05479531,27930.0,27928.0,0.09158436]
[1680560370399,0.05479531,27930.0,27929.0,0.021625]
[1680560370621,0.02580725,27935.0,27933.0,0.20898718]
[1680560370829,0.008949,27935.0,27933.0,0.21410718]
[1680560371039,0.008949,27935.0,27933.0,0.46292351]
[1680560371040,0.162241,27934.0,27933.0,0.46292351]
[1680560371246,0.162241,27934.0,27933.0,6e-05]
[1680560371247,0.189089,27934.0,27933.0,6e-05]
[1680560371458,0.189089,27934.0,27931.0,0.00018]
[1680560371668,0.026007,27933.0,27931.0,0.00018]
[1680560371898,0.00895,27932.0,27930.0,0.21416718]
[1680560372092,0.026114,27931.0,27930.0,0.21416718]
[1680560372331,0.026114,27931.0,27930.0,0.2355839]
[1680560372542,0.00895,27932.0,27931.0,0.5]
[1680560372758,0.00895,27932.0,27931.0,0.50018]
[1680560372975,0.00895,27933.0,27931.0,0.50018]
[1680560373198,0.17006578,27942.0,27933.0,0.2]
[1680560373199,0.017896,27938.0,27933.0,0.2]
[1680560373449,0.207571,27940.0,27933.0,0.2]
[1680560373450,0.008949,27936.0,27933.0,0.66073948]
[1680560373692,0.008949,27936.0,27933.0,0.66061948]
[1680560373909,0.018076,27939.0,27934.0,0.05]
[1680560373910,0.008948,27937.0,27934.0,0.05]
[1680560374120,0.008949,27936.0,27934.0,0.05]
[1680560374548,1.3286433,27956.0,27934.0,0.05006]
[1680560374815,0.008949,27936.0,27935.0,0.07106795]
[1680560375040,0.38212,27947.0,27935.0,0.07106795]
[1680560375041,0.035666,27944.0,27936.0,0.5]
[1680560375254,0.008948,27938.0,27936.0,0.50018]
[1680560375919,0.026844,27938.0,27936.0,0.78387862]
[1680560376139,0.018731,27937.0,27936.0,0.78387862]
[1680560376367,0.008948,27937.0,27936.0,0.78369862]
[1680560376587,0.017895,27940.0,27936.0,0.79069862]
[1680560376808,0.03579,27941.0,27936.0,0.79069862]
[1680560376809,0.008948,27938.0,27936.0,0.79069862]
[1680560377025,0.017896,27940.0,27936.0,0.78387862]
[1680560377263,0.008948,27938.0,27937.0,0.17897]
[1680560377490,0.008948,27938.0,27937.0,0.17914]
[1680560377704,0.019499,27938.0,27937.0,0.00018]
[1680560378610,0.019499,27938.0,27937.0,0.00012]
[1680560378611,0.009499,27938.0,27937.0,0.00012]
[1680560378827,0.009499,27938.0,27937.0,0.34833839]
[1680560379039,0.009499,27938.0,27937.0,0.43813602]
[1680560379247,0.007403,27938.0,27937.0,0.001]
[1680560379462,0.007403,27938.0,27937.0,0.30217146]
[1680560379686,0.016351,27938.0,27937.0,0.30217146]
[1680560379916,0.00915735,27941.0,27938.0,0.05894]
[1680560380140,0.008946,27945.0,27941.0,0.78369862]
[1680560380357,0.007157,27943.0,27942.0,0.22893]
[1680560380570,0.007157,27943.0,27942.0,0.22911]
[1680560380782,0.006517,27943.0,27942.0,0.22905]
[1680560380990,0.006517,27943.0,27942.0,0.22893]
[1680560381274,0.006517,27943.0,27942.0,0.17893]
[1680560381520,0.006517,27943.0,27938.0,0.63054]
[1680560381521,0.05,27942.0,27938.0,0.04891987]
[1680560381739,0.34702344,27941.0,27938.0,0.028]
[1680560381947,0.34720344,27941.0,27936.0,0.77652749]
[1680560382159,0.34720344,27941.0,27933.0,0.43874902]
[1680560382160,0.382,27939.0,27933.0,0.43874902]
[1680560382389,0.382,27937.0,27931.0,0.00018]
[1680560382627,0.33518281,27938.0,27914.0,0.66913332]
[1680560382628,0.05502293,27928.0,27914.0,0.71108457]
[1680560382853,0.66517881,27936.0,27917.0,0.67428202]
[1680560382854,0.389162,27924.0,27917.0,0.67428202]
[1680560383064,0.14189681,27923.0,27917.0,0.67428202]
[1680560383278,0.021489,27922.0,27917.0,0.67428202]
[1680560383493,0.01635658,27921.0,27917.0,0.7662875]
[1680560383715,0.021489,27920.0,27917.0,0.00018]
[1680560383928,0.050142,27920.0,27917.0,0.00018]
[1680560384145,0.050142,27920.0,27918.0,0.43341771]
[1680560384358,0.0050142,27919.0,27918.0,0.43359771]
[1680560384572,0.0838122,27919.0,27918.0,0.43359771]
[1680560384789,0.3923122,27919.0,27918.0,0.43359771]
[1680560385263,0.307163,27919.0,27918.0,0.42863151]
[1680560385482,0.307163,27919.0,27913.0,0.7661075]
[1680560385697,0.05,27918.0,27913.0,0.69491901]
[1680560385915,0.050148,27917.0,27913.0,0.69491901]
[1680560386581,0.050148,27917.0,27914.0,0.14518857]
[1680560386813,0.43702163,27916.0,27911.0,0.00018]
[1680560387040,0.09314,27915.0,27910.0,0.42569007]
[1680560387276,0.315664,27915.0,27913.0,0.007]
[1680560387492,0.029993,27915.0,27913.0,0.007]
[1680560387705,0.4247009,27915.0,27913.0,0.007]
[1680560388126,0.8067009,27915.0,27913.0,0.007]
[1680560388567,0.0085,27914.0,27912.0,0.00018]
[1680560388790,0.0085,27914.0,27910.0,0.00018]
[1680560389063,0.050155,27913.0,27910.0,0.00018]
[1680560389306,0.0623352,27913.0,27910.0,0.14692258]
[1680560389530,0.1123352,27913.0,27912.0,0.002]
[1680560389753,0.100155,27913.0,27912.0,0.00218]
[1680560389963,0.100155,27913.0,27911.0,0.43078676]
[1680560389964,0.05,27912.0,27911.0,0.43078676]
[1680560390196,0.05,27912.0,27910.0,0.00118]
[1680560390431,0.141358,27912.0,27909.0,0.45783705]
[1680560390645,0.056718,27911.0,27910.0,0.13489529]
[1680560390865,0.112092,27911.0,27909.0,0.00018]
[1680560391089,0.412092,27911.0,27909.0,0.3388392]
[1680560391313,0.412272,27911.0,27909.0,0.3388392]
[1680560391577,0.12549615,27910.0,27909.0,0.3388392]
[1680560391800,0.12549615,27910.0,27908.0,0.00018]
[1680560391801,0.016122,27910.0,27908.0,0.00018]
[1680560392022,0.016122,27910.0,27907.0,0.76501361]
[1680560392240,0.0049425,27910.0,27908.0,0.17915]
[1680560392458,0.0049425,27910.0,27908.0,0.27873092]
[1680560392676,0.0049425,27910.0,27908.0,0.23924455]
[1680560393132,0.06384258,27913.0,27910.0,0.76173903]
[1680560393365,0.005373,27915.0,27912.0,0.17912]
[1680560393595,0.010745,27919.0,27916.0,0.76173903]
[1680560393827,0.01308,27918.0,27917.0,0.19189681]
[1680560394546,0.021669,27921.0,27920.0,0.76173903]
[1680560394547,0.010744,27921.0,27920.0,0.76173903]
[1680560394770,0.023686,27921.0,27920.0,0.90363584]
[1680560394995,0.023686,27921.0,27920.0,0.94080903]
[1680560395509,0.46546291,27921.0,27920.0,0.76173903]
[1680560395733,0.46564291,27921.0,27920.0,0.77473903]
[1680560395951,0.023866,27921.0,27920.0,0.77473903]
[1680560396178,0.023686,27921.0,27920.0,0.77473903]
[1680560396403,0.016116,27921.0,27920.0,0.77473903]
[1680560397291,0.016116,27921.0,27920.0,0.78173903]
[1680560397504,0.016116,27921.0,27920.0,1.14026509]
[1680560397724,0.023463,27921.0,27920.0,1.15326509]
[1680560398161,0.016116,27921.0,27920.0,1.15326509]
[1680560398382,0.38882394,27921.0,27920.0,0.77473903]
[1680560398623,0.38882394,27921.0,27920.0,0.01318]
[1680560398852,0.68882394,27921.0,27920.0,0.013]
[1680560399775,0.68900394,27921.0,27920.0,0.013]
[1680560400215,0.323588,27921.0,27920.0,0.38959787]
[1680560400433,0.023588,27921.0,27920.0,0.37659787]
[1680560400655,0.023408,27921.0,27920.0,0.37659787]
[1680560401579,0.03740039,27928.0,27922.0,0.2]
[1680560401812,0.03740039,27928.0,27921.0,0.76173903]
[1680560401813,0.41312527,27937.0,27927.0,0.94075903]
[1680560402094,0.250484,27946.0,27927.0,0.94075903]
[1680560402095,0.016108,27934.0,27932.0,0.179]
[1680560402329,0.016108,27934.0,27933.0,0.14189681]
[1680560402549,0.02420641,27934.0,27932.0,0.00018]
[1680560402770,0.016108,27934.0,27931.0,1.10779406]
[1680560403268,0.016108,27934.0,27933.0,0.39991569]
[1680560403495,0.00811182,27938.0,27933.0,0.40009569]
[1680560403732,0.016108,27934.0,27933.0,0.00018]
[1680560403970,0.016108,27934.0,27933.0,0.43868277]
[1680560404190,0.024608,27934.0,27933.0,0.00018]
[1680560404421,0.016108,27934.0,27933.0,0.00018]
[1680560404892,0.016108,27934.0,27933.0,0.00718]
[1680560405114,0.016108,27934.0,27933.0,0.42242922]
[1680560405558,0.016108,27934.0,27933.0,0.00718]
[1680560405790,0.211055,27941.0,27935.0,0.0661075]
[1680560405791,0.021476,27939.0,27935.0,0.0661075]
[1680560406030,0.005369,27938.0,27936.0,0.14189681]
[1680560406249,0.005369,27938.0,27936.0,0.00018]
[1680560406487,0.46709537,27946.0,27936.0,0.00018]
[1680560406488,0.5089815,27946.0,27936.0,0.00018]
[1680560406705,0.00018,27948.0,27937.0,0.14189681]
[1680560406706,0.005369,27938.0,27937.0,0.14189681]
[1680560406926,0.005369,27938.0,27935.0,0.007]
[1680560407164,0.005369,27938.0,27934.0,0.57976153]
[1680560407385,0.0085,27937.0,27936.0,0.001]
[1680560407603,0.024607,27937.0,27936.0,0.05]
[1680560408483,0.016107,27937.0,27936.0,0.05]
[1680560409236,0.0006,27940.0,27937.0,0.05]
[1680560409529,0.016105,27939.0,27937.0,0.19207681]
[1680560409790,0.0006,27943.0,27937.0,0.19207681]
[1680560409791,0.011336,27943.0,27937.0,0.19207681]
[1680560409994,0.011336,27943.0,27938.0,0.47785969]
[1680560409995,0.005368,27940.0,27938.0,0.47785969]
[1680560410212,0.005368,27940.0,27939.0,0.7]
[1680560410438,0.0530484,27943.0,27939.0,0.70018]
[1680560410671,0.0530484,27943.0,27940.0,0.05]
[1680560410672,0.0637844,27943.0,27940.0,0.05]
[1680560410952,0.005368,27942.0,27940.0,0.00018]
[1680560411194,0.005368,27942.0,27940.0,0.05018]
[1680560411429,0.005368,27942.0,27940.0,0.00018]
[1680560412126,0.005968,27942.0,27940.0,0.00018]
[1680560412392,1.29273404,27941.0,27940.0,0.00018]
[1680560412629,1.61733804,27941.0,27940.0,0.00018]
[1680560413073,1.61733804,27941.0,27940.0,0.00218]
[1680560413310,1.61733804,27941.0,27940.0,0.33216028]
[1680560413536,1.61733804,27941.0,27940.0,0.37748887]
[1680560413537,0.316104,27941.0,27940.0,0.37748887]
[1680560413768,0.324604,27941.0,27940.0,0.00218]
[1680560414000,0.06014969,27941.0,27940.0,0.00018]
[1680560414236,0.06014969,27941.0,27940.0,0.00118]
[1680560414471,0.06014969,27941.0,27940.0,0.00018]
[1680560414761,0.024604,27941.0,27940.0,0.00018]
[1680560415001,0.024604,27941.0,27940.0,0.45266688]
[1680560415468,0.024604,27941.0,27940.0,0.00018]
[1680560415712,0.024604,27941.0,27938.0,1.0]
[1680560415713,1.3135383,27941.0,27938.0,0.93959954]
[1680560415953,0.0006,27939.0,27938.0,0.77205661]
[1680560416202,1.64589772,27939.0,27938.0,0.25035977]
[1680560416434,1.64589772,27939.0,27929.0,0.7]
[1680560416435,0.05422029,27938.0,27929.0,0.7]
[1680560416665,0.0006,27930.0,27929.0,0.59373502]
[1680560416900,0.038193,27930.0,27929.0,0.59373502]
[1680560417134,0.038193,27930.0,27925.0,0.00061113]
[1680560417135,0.0473825,27930.0,27927.0,0.98931412]
[1680560417362,0.0473825,27930.0,27927.0,0.96737292]
[1680560417590,0.1804,27929.0,27927.0,0.94958689]
[1680560417807,0.016111,27928.0,27927.0,0.94958689]
[1680560418026,0.196691,27928.0,27927.0,0.94958689]
[1680560418251,0.59169428,27928.0,27927.0,0.94958689]
[1680560418528,0.59169428,27928.0,27927.0,0.86773184]
[1680560418529,0.64267473,27928.0,27927.0,0.86773184]
[1680560418722,0.64267473,27928.0,27927.0,0.86873184]
[1680560418959,0.64267473,27928.0,27927.0,0.86791184]
[1680560418960,0.4702236,27928.0,27927.0,0.86791184]
[1680560419182,0.4703436,27928.0,27927.0,0.86273184]
[1680560419416,0.4843436,27928.0,27927.0,0.85365958]
[1680560419650,1.88065742,27928.0,27927.0,0.66708248]
[1680560419902,1.81957411,27928.0,27927.0,0.64201945]
[1680560420125,1.80868511,27928.0,27927.0,0.61830515]
[1680560420348,1.75489563,27928.0,27927.0,0.61217515]
[1680560420578,1.55471563,27928.0,27927.0,0.61235515]
[1680560420813,1.51069102,27928.0,27927.0,0.61235515]
[1680560421089,1.30787118,27928.0,27927.0,0.57264515]
[1680560421309,1.35259118,27928.0,27927.0,0.57282515]
[1680560421544,1.35259118,27928.0,27927.0,0.57482515]
[1680560421545,1.16659118,27928.0,27927.0,0.57482515]
[1680560421765,1.16659118,27928.0,27927.0,0.56572515]
[1680560421766,1.06659118,27928.0,27927.0,0.56572515]
[1680560421985,0.27719691,27928.0,27927.0,0.56572515]
[1680560422208,0.21250607,27928.0,27927.0,0.52393149]
[1680560422444,0.210511,27928.0,27927.0,0.5152515]
[1680560422672,0.21717962,27928.0,27927.0,0.48655892]
[1680560422918,0.44729062,27928.0,27927.0,0.48855892]
[1680560423153,0.402011,27928.0,27927.0,0.48655892]
[1680560424077,0.402011,27928.0,27927.0,0.48855892]
[1680560424296,0.46644062,27928.0,27927.0,0.48655892]
[1680560424520,0.46644062,27928.0,27927.0,0.48855892]
[1680560424737,0.47494062,27928.0,27927.0,0.48655892]
[1680560424984,0.47494062,27928.0,27927.0,0.48855892]
[1680560425915,0.63247205,27928.0,27927.0,0.48655892]
[1680560426127,0.63247205,27928.0,27927.0,0.48855892]
[1680560426374,0.63265205,27928.0,27927.0,0.43737892]
[1680560426593,0.63265205,27928.0,27927.0,0.38637892]
[1680560426823,0.64419451,27928.0,27927.0,0.33037892]
[1680560427050,0.63265205,27928.0,27927.0,0.0564318]
[1680560427264,0.63265205,27928.0,27918.0,0.57879813]
[1680560427265,0.10626498,27924.0,27918.0,0.57879813]
[1680560427528,0.10626498,27924.0,27915.0,0.92276641]
[1680560427529,0.0006,27919.0,27910.0,0.01224]
[1680560427765,0.0006,27914.0,27911.0,0.41468913]
[1680560427996,0.037615,27913.0,27911.0,0.41468913]
[1680560428227,0.0085,27912.0,27911.0,0.41468913]
[1680560428455,0.013874,27912.0,27911.0,0.41468913]
[1680560428675,0.0239374,27912.0,27911.0,0.41468913]
[1680560428896,0.0241174,27912.0,27911.0,0.41468913]
[1680560430299,0.009136,27912.0,27911.0,0.41468913]
[1680560430525,0.019956,27912.0,27911.0,0.41568913]
[1680560430745,0.0749293,27912.0,27911.0,0.41568913]
[1680560430981,0.008956,27912.0,27911.0,0.41468913]
[1680560431197,0.018885,27912.0,27911.0,0.41468913]
[1680560431429,0.014885,27912.0,27911.0,0.39514229]
[1680560431662,0.034385,27912.0,27911.0,0.39614229]
[1680560431929,0.034385,27912.0,27911.0,0.35607029]
[1680560432155,0.04592746,27912.0,27910.0,0.35887029]
[1680560432377,0.03088875,27911.0,27910.0,0.35869029]
[1680560432602,0.04880175,27911.0,27910.0,0.35869029]
[1680560433260,0.13734421,27911.0,27910.0,0.33090829]
[1680560433489,0.13734421,27911.0,27908.0,0.10524925]
[1680560433490,0.3309,27910.0,27908.0,0.10524925]
[1680560433709,0.355679,27909.0,27908.0,0.08605613]
[1680560434003,0.355679,27909.0,27908.0,0.08193865]
[1680560434229,0.62966258,27909.0,27908.0,0.08187865]
[1680560434451,0.62966258,27909.0,27908.0,0.08287865]
[1680560434898,0.62972258,27909.0,27908.0,0.07759109]
[1680560435119,0.62966258,27909.0,27908.0,0.07759109]
[1680560435344,0.62966258,27909.0,27908.0,0.07659109]
[1680560435559,0.62966258,27909.0,27908.0,0.07759109]
[1680560435560,0.65666258,27909.0,27908.0,0.07759109]
[1680560435791,0.62906258,27909.0,27908.0,0.07659109]
[1680560436019,0.03731787,27909.0,27908.0,0.5827994]
[1680560436252,0.014331,27911.0,27909.0,0.05]
[1680560436486,0.039412,27910.0,27909.0,0.07659109]
[1680560436722,0.046577,27910.0,27909.0,0.07659109]
[1680560437172,0.046757,27910.0,27909.0,0.07659109]
[1680560437399,0.046577,27910.0,27909.0,0.07659109]
[1680560437914,0.046757,27910.0,27909.0,0.07659109]
[1680560438152,0.014331,27911.0,27910.0,0.2]
[1680560438153,0.00018,27911.0,27910.0,0.2]
[1680560438397,0.06237561,27912.0,27910.0,0.2]
[1680560438618,0.003582,27911.0,27910.0,0.2]
[1680560439087,0.014509,27915.0,27910.0,0.2]
[1680560439088,0.01437717,27925.0,27919.0,0.07659109]
[1680560439333,0.01437717,27925.0,27910.0,0.80722681]
[1680560439334,0.01437717,27925.0,27923.0,0.07659109]
[1680560439335,0.01131604,27925.0,27923.0,0.07659109]
[1680560439579,0.01131604,27925.0,27924.0,0.14189681]
[1680560439580,0.00884588,27925.0,27924.0,0.14189681]
[1680560439816,0.06600185,27926.0,27924.0,0.14189681]
[1680560439817,0.04098185,27926.0,27924.0,0.14189681]
[1680560440053,0.04456715,27928.0,27924.0,0.14189681]
[1680560440054,0.04456715,27928.0,27925.0,0.05]
[1680560440298,0.007161,27928.0,27927.0,0.07659109]
[1680560440540,0.01968404,27928.0,27927.0,0.2184879]
[1680560440773,0.01968404,27928.0,27922.0,0.00185923]
[1680560440774,0.05979207,27928.0,27922.0,0.00185923]
[1680560441015,0.05979207,27928.0,27917.0,0.34066592]
[1680560441016,0.05,27926.0,27917.0,0.38867571]
[1680560441255,0.060879,27924.0,27917.0,0.38867571]
[1680560441486,0.060879,27924.0,27913.0,0.00018]
[1680560441487,0.01960106,27923.0,27919.0,0.028]
[1680560441761,0.02730901,27922.0,27911.0,0.5102]
[1680560441993,0.02730901,27922.0,27917.0,0.002]
[1680560441994,1.30930596,27921.0,27917.0,0.002]
[1680560442236,1.30930596,27921.0,27912.0,0.42165903]
[1680560442237,1.6732749,27920.0,27912.0,0.42165903]
[1680560442467,0.55571,27920.0,27919.0,0.002]
[1680560442694,0.17196,27919.0,27911.0,0.51063113]
[1680560442918,0.046566,27917.0,27911.0,0.51063113]
[1680560443146,0.046746,27917.0,27911.0,0.90923986]
[1680560443371,0.24335108,27916.0,27912.0,0.35848071]
[1680560443606,0.35408471,27915.0,27912.0,0.35848071]
[1680560443832,0.0085,27914.0,27912.0,0.35848071]
[1680560444057,0.010747,27913.0,27912.0,0.35848071]
[1680560444288,0.019427,27913.0,27912.0,0.35848071]
[1680560445384,0.019427,27913.0,27911.0,0.51063113]
[1680560445385,0.00218,27913.0,27911.0,0.71063113]
[1680560445649,0.003582,27913.0,27912.0,0.42861949]
[1680560445873,0.005582,27913.0,27912.0,0.42861949]
[1680560446095,0.005582,27913.0,27911.0,0.71063113]
[1680560446331,0.005582,27913.0,27912.0,0.39502386]
[1680560446583,0.02518306,27913.0,27903.0,0.00090149]
[1680560446819,0.02518306,27913.0,27894.0,0.28307966]
[1680560446820,1.36813788,27912.0,27906.0,0.00012]
[1680560447041,1.36813788,27912.0,27899.0,0.2]
[1680560447042,0.01926507,27905.0,27903.0,0.14189681]
[1680560447267,0.03885106,27904.0,27899.0,0.18073493]
[1680560447720,0.03885106,27904.0,27903.0,0.002]
[1680560447946,0.01925,27904.0,27899.0,0.18073493]
[1680560448242,0.00918,27905.0,27903.0,0.002]
[1680560448466,0.00018,27910.0,27908.0,0.18073493]
[1680560448695,0.09754266,27912.0,27909.0,0.14189681]
[1680560448696,0.00018,27912.0,27909.0,0.14189681]
[1680560448943,0.010747,27911.0,27909.0,0.58337834]